bitfinex/quotes_SOLUSD_20250717
["timestamp","ask_amount","ask_price","bid_price","bid_amount"]
[1752757260404,5.65642853,176.79,176.77,34.38595911]
[1752757260611,5.65642853,176.79,176.75,0.69]
[1752757260913,5.89595911,176.78,176.75,0.03]
[1752757261284,5.89595911,176.77,176.75,0.03]
[1752757261481,5.22595911,176.76,176.68,1.6482]
[1752757261681,5.22595911,176.76,176.67,5.91595911]
[1752757261682,5.22595911,176.72,176.67,5.91595911]
[1752757261906,5.89595911,176.72,176.67,31.91595911]
[1752757262203,5.65738854,176.76,176.71,5.22595911]
[1752757262402,0.67,176.75,176.7,5.22595911]
[1752757262606,0.67,176.74,176.7,5.22595911]
[1752757262899,0.67,176.74,176.69,31.88595911]
[1752757263085,0.67,176.74,176.7,5.22595911]
[1752757263481,25.69681902,176.76,176.7,0.66]
[1752757263900,5.89595911,176.75,176.69,26.0]
[1752757264117,0.67,176.75,176.71,5.22595911]
[1752757264414,5.65776615,176.75,176.72,5.22595911]
[1752757264588,5.6570685,176.77,176.74,5.22595911]
[1752757264780,5.65578869,176.81,176.76,5.22595911]
[1752757265012,5.65490995,176.84,176.8,5.22595911]
[1752757265182,0.73,176.85,176.83,5.22595911]
[1752757265183,0.06,176.85,176.83,5.22595911]
[1752757265500,0.06,176.85,176.84,5.88595911]
[1752757265895,0.06,176.85,176.84,5.22595911]
[1752757266204,0.06,176.85,176.84,5.88595911]
[1752757266877,0.06,176.85,176.84,5.22595911]
[1752757267789,0.06,176.85,176.84,5.88595911]
[1752757267988,0.06,176.85,176.84,31.88595911]
[1752757268312,0.06,176.85,176.84,28.3254723]
[1752757268514,0.06,176.92,176.85,26.0]
[1752757268712,5.71227221,176.92,176.91,5.22595911]
[1752757269016,5.71227221,176.92,176.86,29.16]
[1752757269017,5.71227221,176.92,176.89,8.36268343]
[1752757269398,0.06,176.92,176.91,8.36268343]
[1752757269611,5.71227221,176.92,176.91,8.36268343]
[1752757269784,0.06,176.92,176.91,8.36268343]
[1752757269985,5.71227221,176.92,176.91,8.36268343]
[1752757270510,0.06,176.92,176.9,8.36268343]
[1752757272292,0.72,176.92,176.89,8.36268343]
[1752757272594,0.06,176.92,176.9,8.36268343]
[1752757272792,0.06,176.92,176.89,8.36268343]
[1752757272793,0.72,176.92,176.89,8.36268343]
[1752757273084,0.72,176.92,176.85,26.71]
[1752757273085,0.66,176.91,176.85,0.71]
[1752757273413,0.66,176.91,176.86,37.52268343]
[1752757273414,9.02268343,176.91,176.86,37.52268343]
[1752757273609,0.66,176.9,176.86,37.52268343]
[1752757274196,8.42268343,176.92,176.87,8.36268343]
[1752757274398,6.31259171,176.91,176.87,8.36268343]
[1752757274789,0.66,176.9,176.87,8.36268343]
[1752757275533,5.65259171,176.91,176.87,8.36268343]
[1752757275692,0.66,176.9,176.87,8.36268343]
[1752757276496,5.65323082,176.89,176.86,37.52268343]
[1752757277813,6.31323082,176.89,176.86,29.16]
[1752757277999,0.66,176.88,176.86,29.16]
[1752757278203,5.65323082,176.89,176.86,26.0]
[1752757278391,5.65323082,176.89,176.86,34.36268343]
[1752757279222,0.66,176.88,176.86,26.0]
[1752757280111,5.65323082,176.89,176.86,26.0]
[1752757280428,5.65323082,176.89,176.85,8.36268343]
[1752757280799,5.65323082,176.89,176.86,9.07268343]
[1752757281332,5.65259171,176.91,176.87,9.07268343]
[1752757281894,5.65259171,176.91,176.88,9.07268343]
[1752757282092,0.06,176.92,176.9,8.36268343]
[1752757282410,0.06,176.92,176.91,8.36268343]
[1752757282595,0.06,176.92,176.91,9.07268343]
[1752757282800,5.85163332,176.94,176.93,26.0]
[1752757282996,5.85163332,176.94,176.93,34.36268343]
[1752757283196,5.85163332,176.94,176.93,26.0]
[1752757283519,5.85163332,176.94,176.91,8.36268343]
[1752757283701,5.85163332,176.94,176.9,55.14]
[1752757283902,5.85163332,176.94,176.91,8.36268343]
[1752757284101,5.85163332,176.94,176.92,8.36268343]
[1752757284307,5.85163332,176.94,176.92,11.13916181]
[1752757285097,0.2,176.94,176.93,8.36268343]
[1752757285315,22.88928397,176.93,176.83,4.5101206]
[1752757285519,22.88928397,176.93,176.79,0.71]
[1752757285520,8.36268343,176.88,176.82,8.36268343]
[1752757285830,8.36268343,176.86,176.8,17.30268343]
[1752757286032,0.66,176.87,176.83,8.36268343]
[1752757286200,8.36268343,176.9,176.84,9.07268343]
[1752757286521,17.44468397,176.91,176.84,9.07268343]
[1752757286723,8.36268343,176.89,176.83,8.36268343]
[1752757286901,8.36268343,176.89,176.84,8.36268343]
[1752757287316,5.65355042,176.88,176.84,8.36268343]
[1752757287513,6.31355042,176.88,176.83,8.36268343]
[1752757287826,6.31355042,176.88,176.83,35.07268343]
[1752757288226,20.44742649,176.88,176.83,35.07268343]
[1752757288402,20.44742649,176.88,176.83,26.0]
[1752757288403,8.36268343,176.86,176.83,26.0]
[1752757288600,19.78742649,176.88,176.8,8.94]
[1752757288601,9.02268343,176.85,176.8,8.94]
[1752757288806,8.36268343,176.83,176.78,29.26]
[1752757289014,36.57211046,176.88,176.78,29.26]
[1752757289015,9.02268343,176.82,176.78,29.26]
[1752757289220,5.65578869,176.81,176.77,9.07268343]
[1752757289902,5.65578869,176.81,176.78,0.71]
[1752757290097,5.65578869,176.81,176.77,8.36268343]
[1752757290810,5.65578869,176.81,176.77,9.07268343]
[1752757291009,5.65578869,176.81,176.77,8.36268343]
[1752757291205,14.1385804,176.83,176.79,8.36268343]
[1752757291408,23.16126383,176.83,176.78,34.36268343]
[1752757291627,9.02268343,176.82,176.78,26.0]
[1752757292215,0.66,176.82,176.78,26.0]
[1752757292417,22.50126383,176.83,176.78,26.0]
[1752757292613,22.50126383,176.83,176.78,26.71]
[1752757293097,14.01751265,176.84,176.79,0.71]
[1752757293304,19.79078314,176.85,176.79,9.07268343]
[1752757293645,8.36268343,176.84,176.79,9.07268343]
[1752757293847,5.65450947,176.85,176.81,8.36268343]
[1752757294006,5.65450947,176.85,176.83,8.36268343]
[1752757294406,5.65450947,176.85,176.83,0.71]
[1752757295121,5.65450947,176.85,176.83,9.07268343]
[1752757295322,14.13431332,176.88,176.83,8.36268343]
[1752757295528,14.13431332,176.88,176.84,9.07268343]
[1752757295913,14.13431332,176.88,176.84,9.27268343]
[1752757296113,22.49699675,176.88,176.84,0.2]
[1752757297124,14.13431332,176.88,176.84,0.2]
[1752757297317,5.65323082,176.89,176.85,9.07268343]
[1752757297640,5.65323082,176.89,176.86,26.0]
[1752757298904,5.65291124,176.9,176.86,26.0]
[1752757299128,5.65291124,176.9,176.86,35.07268343]
[1752757300310,8.36268343,176.88,176.86,26.0]
[1752757300634,0.66,176.88,176.86,26.0]
[1752757301617,14.01559467,176.9,176.86,26.69]
[1752757301819,5.65291124,176.9,176.88,8.36268343]
[1752757302124,5.65291124,176.9,176.89,26.0]
[1752757302438,5.71259171,176.91,176.89,26.2]
[1752757302651,0.66,176.9,176.89,0.2]
[1752757302851,9.02268343,176.9,176.89,0.2]
[1752757303133,9.02268343,176.9,176.83,0.2]
[1752757303349,8.36268343,176.86,176.83,0.2]
[1752757303553,8.36268343,176.85,176.82,0.2]
[1752757303712,9.02268343,176.84,176.82,0.2]
[1752757304327,5.65514901,176.83,176.81,26.0]
[1752757304737,5.65514901,176.83,176.78,40.16168343]
[1752757304940,5.65514901,176.83,176.79,9.05268343]
[1752757305144,5.65514901,176.83,176.78,29.46]
[1752757305145,8.36268343,176.82,176.78,55.46]
[1752757305321,8.36268343,176.81,176.78,29.46]
[1752757305553,8.36268343,176.8,176.78,29.46]
[1752757305732,9.02268343,176.81,176.78,0.2]
[1752757305914,8.36268343,176.81,176.78,0.2]
[1752757306118,9.02268343,176.81,176.78,0.2]
[1752757306326,5.65610859,176.8,176.78,0.2]
[1752757307028,14.13787253,176.83,176.78,0.89]
[1752757307029,14.01815226,176.82,176.78,0.89]
[1752757307257,5.65546883,176.82,176.78,0.89]
[1752757307826,5.65546883,176.82,176.79,26.0]
[1752757308644,5.65546883,176.82,176.79,26.69]
[1752757308848,5.65450947,176.85,176.81,8.36268343]
[1752757309023,5.65450947,176.85,176.82,9.05268343]
[1752757309225,5.65450947,176.85,176.82,9.25268343]
[1752757309541,14.6771929,176.85,176.82,0.2]
[1752757309754,0.66,176.84,176.82,0.2]
[1752757310137,9.02268343,176.84,176.82,0.2]
[1752757310339,5.65355042,176.88,176.83,8.36268343]
[1752757310547,5.65291124,176.9,176.85,8.36268343]
[1752757310738,14.67559467,176.9,176.85,8.36268343]
[1752757310949,14.67559467,176.9,176.84,9.05268343]
[1752757311158,0.66,176.89,176.84,8.36268343]
[1752757311454,5.65291124,176.9,176.85,9.05268343]
[1752757311655,5.65291124,176.9,176.86,8.36268343]
[1752757312558,8.36268343,176.9,176.85,0.69]
[1752757312745,9.02268343,176.9,176.85,0.69]
[1752757313258,5.71259171,176.91,176.85,9.05268343]
[1752757313454,8.36268343,176.9,176.85,9.05268343]
[1752757313652,9.02268343,176.9,176.85,9.05268343]
[1752757313964,9.02268343,176.9,176.85,0.69]
[1752757314135,8.36268343,176.88,176.83,37.72268343]
[1752757314334,9.02268343,176.88,176.83,38.41268343]
[1752757314956,14.67651789,176.88,176.83,38.41268343]
[1752757315152,5.65383446,176.88,176.83,38.41268343]
[1752757315461,5.65331545,176.89,176.84,9.05268343]
[1752757315767,5.65331545,176.89,176.85,0.69]
[1752757316060,5.65301084,176.9,176.86,35.05268343]
[1752757316250,5.65301084,176.9,176.86,26.69]
[1752757316456,8.36268343,176.88,176.86,26.0]
[1752757316964,10.88379924,176.88,176.86,26.0]
[1752757317147,11.54379924,176.88,176.86,26.0]
[1752757317666,5.89011791,176.87,176.85,0.2]
[1752757317866,5.23011791,176.86,176.85,26.2]
[1752757318050,5.89011791,176.87,176.85,26.2]
[1752757318643,5.89011791,176.87,176.85,0.2]
[1752757319152,5.65418975,176.86,176.85,26.2]
[1752757319349,11.54430766,176.86,176.85,0.2]
[1752757319544,11.54430766,176.86,176.83,29.36]
[1752757319545,11.54430766,176.86,176.83,0.2]
[1752757319748,5.23011791,176.84,176.83,0.2]
[1752757319950,14.13324865,176.89,176.86,37.48034934]
[1752757320240,5.23011791,176.87,176.86,37.48034934]
[1752757320456,5.23011791,176.88,176.86,37.48034934]
[1752757320851,5.23011791,176.87,176.86,37.48034934]
[1752757321464,10.88398798,176.87,176.86,37.48034934]
[1752757321847,11.54398798,176.87,176.86,37.48034934]
[1752757322450,6.31387007,176.87,176.86,37.48034934]
[1752757322644,11.54398798,176.87,176.86,37.48034934]
[1752757322960,10.88398798,176.87,176.86,37.48034934]
[1752757323969,11.54398798,176.87,176.86,37.48034934]
[1752757324959,27.21336316,176.87,176.8,26.2]
[1752757325149,5.23011791,176.81,176.79,0.2]
[1752757325366,5.23011791,176.8,176.78,0.3329848]
[1752757325541,5.23011791,176.79,176.78,0.1329848]
[1752757325748,11.54654644,176.79,176.78,0.1329848]
[1752757326182,10.88654644,176.79,176.78,0.1329848]
[1752757326378,11.54654644,176.79,176.78,0.1329848]
[1752757328248,43.45674835,176.85,176.78,0.8229848]
[1752757328454,5.23011791,176.82,176.78,0.8229848]
[1752757328655,5.65482922,176.84,176.79,0.69]
[1752757328848,5.65482922,176.84,176.78,0.1329848]
[1752757328849,5.65482922,176.84,176.8,0.69]
[1752757329071,8.37375687,176.82,176.8,0.69]
[1752757329367,9.03375687,176.81,176.78,0.1329848]
[1752757329569,8.37375687,176.81,176.78,0.8229848]
[1752757329766,8.37375687,176.79,176.78,0.1329848]
[1752757330779,9.06375687,176.79,176.78,0.1329848]
[1752757331868,14.7201854,176.79,176.78,0.1329848]
[1752757332462,5.65642853,176.79,176.78,0.1329848]
[1752757332664,14.0301854,176.79,176.78,0.1329848]
[1752757333063,5.65642853,176.79,176.78,0.1329848]
[1752757333578,14.0301854,176.79,176.78,0.1329848]
[1752757334477,5.65642853,176.79,176.78,0.1329848]
[1752757335254,14.0301854,176.79,176.78,0.1329848]
[1752757335654,14.7201854,176.79,176.78,0.1329848]
[1752757336956,14.0301854,176.79,176.78,0.1329848]
[1752757337477,14.7201854,176.79,176.78,0.1329848]
[1752757338857,8.37375687,176.79,176.78,0.1329848]
[1752757339361,8.37375687,176.79,176.78,0.1629848]
[1752757339570,9.06375687,176.79,176.78,0.1629848]
[1752757340772,14.7201854,176.79,176.78,0.1629848]
[1752757341950,0.69,176.83,176.78,0.1629848]
[1752757342153,8.37375687,176.82,176.78,0.8229848]
[1752757342369,0.69,176.83,176.78,0.8229848]
[1752757342685,29.3,176.84,176.79,0.66]
[1752757342875,5.65546883,176.82,176.79,0.66]
[1752757343122,5.65526321,176.83,176.8,26.0]
[1752757343386,5.65450947,176.85,176.81,9.03375687]
[1752757343562,5.65450947,176.85,176.82,9.03375687]
[1752757343763,5.65450947,176.85,176.83,0.66]
[1752757343968,5.65387007,176.87,176.84,0.66]
[1752757344180,5.71363256,176.88,176.85,0.66]
[1752757344352,0.06,176.88,176.86,0.66]
[1752757344557,0.06,176.88,176.87,0.66]
[1752757344785,5.71355042,176.88,176.87,0.66]
[1752757344959,0.06,176.88,176.87,0.66]
[1752757345677,0.06,176.88,176.85,9.03375687]
[1752757345870,0.06,176.88,176.86,0.66]
[1752757347482,0.06,176.88,176.85,8.37375687]
[1752757347668,0.06,176.88,176.85,0.66]
[1752757347867,8.43375687,176.88,176.86,26.0]
[1752757348687,5.65387007,176.87,176.86,26.0]
[1752757348883,5.71361238,176.88,176.86,26.66]
[1752757349203,5.71361238,176.88,176.87,0.66]
[1752757349204,0.06,176.88,176.87,0.66]
[1752757350287,0.06,176.88,176.85,9.76097299]
[1752757350474,0.06,176.88,176.86,0.66]
[1752757350865,0.06,176.88,176.87,0.66]
[1752757351081,0.06,176.88,176.87,26.66]
[1752757351467,0.06,176.88,176.87,36.62097299]
[1752757351890,0.06,176.88,176.87,26.86]
[1752757352104,0.06,176.88,176.87,26.2]
[1752757353366,6.16092578,176.88,176.87,26.2]
[1752757353797,6.16092578,176.88,176.87,26.0]
[1752757354667,11.8144762,176.88,176.87,26.0]
[1752757357990,12.5044762,176.88,176.87,26.0]
[1752757358971,5.71355042,176.88,176.87,26.66]
[1752757359878,5.71355042,176.88,176.87,26.0]
[1752757360497,6.85092578,176.88,176.87,26.0]
[1752757360695,6.85092578,176.88,176.84,26.0]
[1752757360901,6.10092578,176.85,176.84,26.0]
[1752757361491,6.10092578,176.86,176.84,26.0]
[1752757361691,0.06,176.88,176.85,0.72]
[1752757361891,6.10092578,176.86,176.85,0.72]
[1752757362206,6.10092578,176.86,176.84,26.0]
[1752757362412,5.65450947,176.85,176.84,26.72]
[1752757362711,5.65450947,176.85,176.84,26.0]
[1752757362879,5.65450947,176.85,176.84,26.72]
[1752757363273,11.75510878,176.87,176.85,26.0]
[1752757363508,11.75510878,176.87,176.86,0.72]
[1752757363823,11.75510878,176.87,176.84,26.72]
[1752757364108,11.75510878,176.87,176.85,26.0]
[1752757364782,11.75510878,176.87,176.85,26.72]
[1752757364980,12.44510878,176.87,176.84,26.0]
[1752757365708,6.10092578,176.86,176.84,26.0]
[1752757365884,6.10092578,176.85,176.84,26.0]
[1752757366089,6.79092578,176.85,176.84,26.0]
[1752757366676,11.75543525,176.85,176.84,26.0]
[1752757367583,5.65450947,176.85,176.84,26.0]
[1752757367783,5.65450947,176.85,176.84,26.72]
[1752757368675,6.16092578,176.88,176.85,26.0]
[1752757368880,0.06,176.88,176.86,0.72]
[1752757369101,0.06,176.88,176.87,0.72]
[1752757369405,0.06,176.88,176.86,0.72]
[1752757370007,6.16092578,176.88,176.84,26.0]
[1752757370204,6.10092578,176.86,176.84,26.0]
[1752757370803,5.65418975,176.86,176.85,0.72]
[1752757371004,5.65418975,176.86,176.85,26.72]
[1752757372184,5.65418975,176.86,176.85,0.2]
[1752757372905,11.75511553,176.86,176.85,0.2]
[1752757373487,5.65418975,176.86,176.85,0.2]
[1752757374312,11.75511553,176.86,176.85,0.2]
[1752757374889,12.44511553,176.86,176.85,0.2]
[1752757375286,26.58058991,176.86,176.84,26.0]
[1752757375491,6.79092578,176.85,176.84,26.0]
[1752757375810,6.79092578,176.85,176.81,0.2]
[1752757376120,6.10092578,176.82,176.81,26.0]
[1752757376492,0.69,176.84,176.81,26.0]
[1752757376493,0.69,176.84,176.82,26.0]
[1752757376693,6.79092578,176.83,176.79,29.38]
[1752757376903,5.65610859,176.8,176.79,29.38]
[1752757377109,5.65610859,176.8,176.79,26.2]
[1752757377499,5.65610859,176.8,176.79,26.92]
[1752757377823,12.44703437,176.8,176.79,26.0]
[1752757377990,11.75703437,176.8,176.79,26.0]
[1752757378330,11.75703437,176.8,176.79,26.72]
[1752757378532,11.75703437,176.8,176.79,26.0]
[1752757380232,5.65610859,176.8,176.79,26.0]
[1752757380526,5.65514901,176.83,176.79,26.72]
[1752757380748,5.65514901,176.83,176.82,26.0]
[1752757381526,5.65387007,176.87,176.84,26.0]
[1752757381729,5.65387007,176.87,176.85,0.72]
[1752757382400,5.65387007,176.87,176.84,0.2]
[1752757382621,11.75479585,176.87,176.84,0.2]
[1752757382817,5.65387007,176.87,176.84,0.92]
[1752757383024,11.75479585,176.87,176.84,0.92]
[1752757383501,6.10092578,176.85,176.84,0.2]
[1752757383705,6.79092578,176.85,176.84,0.2]
[1752757384008,6.79092578,176.85,176.79,0.03]
[1752757384009,0.69,176.85,176.79,0.03]
[1752757384215,6.10092578,176.81,176.79,0.03]
[1752757384416,0.69,176.85,176.8,0.72]
[1752757384621,20.53854525,176.87,176.81,0.72]
[1752757384801,6.10092578,176.84,176.81,0.72]
[1752757385221,6.10092578,176.83,176.81,0.72]
[1752757385728,11.75621928,176.83,176.81,0.72]
[1752757386829,5.6552935,176.83,176.82,26.0]
[1752757387131,5.6552935,176.83,176.82,26.72]
[1752757388204,5.65491997,176.84,176.82,26.72]
[1752757388532,5.65491997,176.84,176.8,32.10092578]
[1752757388829,11.75553999,176.85,176.83,0.72]
[1752757389627,5.65461421,176.85,176.83,0.72]
[1752757389834,0.06,176.87,176.84,26.69]
[1752757390143,0.06,176.87,176.84,32.30092578]
[1752757390338,0.06,176.87,176.86,26.0]
[1752757391227,0.06,176.87,176.86,26.69]
[1752757391419,0.06,176.87,176.86,0.69]
[1752757391799,0.06,176.87,176.86,6.79092578]
[1752757392021,0.06,176.87,176.86,6.99092578]
[1752757392223,0.06,176.87,176.86,26.89]
[1752757393136,0.06,176.87,176.86,26.2]
[1752757393455,6.16092578,176.87,176.84,26.69]
[1752757393767,6.16092578,176.87,176.82,30.9493]
[1752757393768,0.06,176.87,176.86,26.0]
[1752757394064,0.06,176.87,176.86,26.69]
[1752757394940,9.82354105,176.87,176.86,26.0]
[1752757395557,0.06,176.87,176.86,26.0]
[1752757396143,0.06,176.87,176.86,26.69]
[1752757396532,9.82354105,176.87,176.86,26.0]
[1752757397136,10.53354105,176.87,176.85,26.0]
[1752757397333,9.76354105,176.86,176.85,26.0]
[1752757398540,15.4177308,176.86,176.85,26.0]
[1752757400265,15.4177308,176.86,176.85,26.69]
[1752757401447,9.76354105,176.86,176.85,26.69]
[1752757401639,15.47750829,176.87,176.85,26.69]
[1752757402856,9.82354105,176.87,176.86,0.69]
[1752757403063,15.47741112,176.87,176.86,0.69]
[1752757403242,15.47741112,176.87,176.85,26.0]
[1752757403442,9.76354105,176.86,176.85,26.0]
[1752757403656,9.76354105,176.86,176.84,26.0]
[1752757403970,9.76354105,176.86,176.85,26.0]
[1752757404264,10.47354105,176.86,176.85,26.0]
[1752757404650,5.71387007,176.87,176.85,26.69]
[1752757404844,9.76354105,176.86,176.85,26.0]
[1752757405359,16.1277308,176.86,176.83,0.2]
[1752757405666,9.76354105,176.84,176.83,26.0]
[1752757406365,5.65418975,176.86,176.83,26.0]
[1752757406669,9.76354105,176.84,176.83,26.69]
[1752757407168,9.76354105,176.85,176.83,26.69]
[1752757407353,9.76354105,176.84,176.83,26.69]
[1752757407556,9.76354105,176.84,176.83,26.0]
[1752757407557,15.41837027,176.84,176.83,26.0]
[1752757408062,5.65418975,176.86,176.83,26.0]
[1752757408277,9.76354105,176.84,176.83,26.69]
[1752757408457,9.76354105,176.84,176.83,26.0]
[1752757409277,9.76354105,176.85,176.83,26.69]
[1752757409438,0.06,176.87,176.84,0.69]
[1752757409439,15.41781232,176.86,176.84,0.69]
[1752757409643,9.76354105,176.85,176.82,26.69]
[1752757409862,9.76354105,176.84,176.82,26.69]
[1752757410252,9.76354105,176.84,176.82,26.0]
[1752757410457,9.76354105,176.84,176.83,0.69]
[1752757410860,5.65427127,176.86,176.83,0.69]
[1752757411047,9.76354105,176.85,176.84,0.69]
[1752757411574,9.76354105,176.85,176.83,26.0]
[1752757411968,5.65427127,176.86,176.82,26.69]
[1752757412265,9.76354105,176.84,176.82,26.69]
[1752757412566,9.76354105,176.83,176.82,26.0]
[1752757412774,9.76354105,176.83,176.82,26.2]
[1752757414081,9.76354105,176.84,176.82,26.89]
[1752757414872,9.76354105,176.84,176.82,26.2]
[1752757415046,5.65450947,176.85,176.82,26.2]
[1752757415377,9.76354105,176.84,176.82,26.89]
[1752757415979,15.41848379,176.84,176.83,26.0]
[1752757416368,16.12848379,176.84,176.82,0.2]
[1752757416552,9.76354105,176.83,176.81,29.38]
[1752757416751,9.76354105,176.83,176.82,26.0]
[1752757416956,6.10554137,176.83,176.82,26.0]
[1752757417158,11.76069038,176.83,176.82,26.0]
[1752757417359,11.76069038,176.83,176.79,29.21]
[1752757417360,12.47069038,176.83,176.79,0.03]
[1752757417558,6.10554137,176.8,176.79,0.03]
[1752757418272,6.10554137,176.8,176.79,0.72]
[1752757419183,5.65482922,176.84,176.79,0.72]
[1752757419383,6.10554137,176.84,176.81,26.0]
[1752757419560,5.65418975,176.86,176.81,26.0]
[1752757419561,11.81950588,176.87,176.82,0.69]
[1752757420376,0.06,176.87,176.85,26.0]
[1752757420584,0.06,176.87,176.86,26.0]
[1752757420950,0.06,176.87,176.86,26.68]
[1752757421170,0.06,176.87,176.86,0.68]
[1752757421776,0.06,176.87,176.86,26.68]
[1752757427188,0.06,176.87,176.86,26.0]
[1752757427565,6.16554137,176.87,176.86,26.0]
[1752757429279,11.81941144,176.87,176.86,26.0]
[1752757431367,12.53941144,176.87,176.86,26.0]
[1752757431575,11.81941144,176.87,176.86,26.0]
[1752757432459,5.71387007,176.87,176.86,26.0]
[1752757432661,11.81941144,176.87,176.86,26.0]
[1752757433078,0.06,176.87,176.86,26.0]
[1752757433280,6.16554137,176.87,176.86,26.0]
[1752757435065,0.06,176.87,176.86,26.68]
[1752757435458,0.06,176.87,176.86,26.0]
[1752757436061,0.06,176.87,176.86,26.68]
[1752757438676,0.06,176.87,176.86,0.88]
[1752757440196,0.06,176.87,176.86,26.88]
[1752757440800,0.06,176.91,176.86,46.40213112]
[1752757441017,0.06,176.91,176.9,26.0]
[1752757441305,0.06,176.91,176.9,55.16]
[1752757441680,0.06,176.91,176.9,55.84]
[1752757442083,0.06,176.91,176.9,26.68]
[1752757442399,0.06,176.91,176.9,55.16]
[1752757442569,6.88554137,176.91,176.86,0.68]
[1752757442775,6.10554137,176.89,176.87,29.16]
[1752757442970,6.10554137,176.9,176.87,55.84]
[1752757443171,6.10554137,176.9,176.89,26.0]
[1752757443477,0.06,176.91,176.89,26.0]
[1752757443677,6.10554137,176.9,176.89,26.0]
[1752757443880,0.06,176.91,176.89,35.94554137]
[1752757444099,0.06,176.91,176.9,6.78554137]
[1752757445680,0.06,176.91,176.9,0.68]
[1752757447996,0.06,176.91,176.89,29.16]
[1752757448192,0.06,176.91,176.9,26.0]
[1752757448391,6.88554137,176.91,176.89,29.16]
[1752757448583,6.82554137,176.9,176.88,0.13290961]
[1752757448795,6.10554137,176.89,176.88,0.13290961]
[1752757448988,6.82554137,176.89,176.88,0.13290961]
[1752757450106,12.47877219,176.89,176.88,0.13290961]
[1752757451581,6.4008,176.87,176.83,0.03]
[1752757451781,6.10554137,176.84,176.83,0.03]
[1752757451993,11.76037059,176.84,176.83,0.03]
[1752757452307,12.46037059,176.84,176.83,0.03]
[1752757454291,6.35482922,176.84,176.83,0.03]
[1752757454499,12.46037059,176.84,176.83,0.03]
[1752757459025,18.39318397,176.83,176.79,0.03]
[1752757459194,6.10554137,176.8,176.79,0.03]
[1752757459608,6.80554137,176.8,176.79,0.03]
[1752757460289,11.76164996,176.8,176.79,0.03]
[1752757461102,5.65610859,176.8,176.79,0.03]
[1752757461309,11.76164996,176.8,176.79,0.03]
[1752757462223,12.46164996,176.8,176.79,0.03]
[1752757462941,18.56719133,176.8,176.79,0.03]
[1752757463103,35.3518753,176.8,176.79,0.03]
[1752757463295,22.89022534,176.79,176.78,1e-08]
[1752757463630,23.59022534,176.79,176.78,1e-08]
[1752757464604,29.24665387,176.79,176.78,1e-08]
[1752757467048,58.40665387,176.79,176.77,1e-08]
[1752757467260,16.78468397,176.77,176.75,0.03]
[1752757467467,52.05022534,176.76,176.75,0.03]
[1752757467747,52.05022534,176.76,176.7,0.2]
[1752757467748,16.78468397,176.74,176.7,0.2]
[1752757467924,6.10554137,176.71,176.67,26.0]
[1752757468120,6.10554137,176.68,176.67,26.0]
[1752757468525,6.10554137,176.68,176.66,0.92]
[1752757468925,6.10554137,176.68,176.67,26.0]
[1752757469332,29.16,176.73,176.67,26.0]
[1752757469519,6.10554137,176.72,176.68,0.72]
[1752757469727,6.10554137,176.72,176.69,0.72]
[1752757469937,6.10554137,176.71,176.69,0.72]
[1752757470321,6.10554137,176.71,176.67,26.2]
[1752757470522,6.10554137,176.71,176.68,0.72]
[1752757470924,11.76484853,176.71,176.68,0.72]
[1752757471440,11.76484853,176.71,176.69,0.72]
[1752757472548,6.10554137,176.71,176.69,0.72]
[1752757472743,6.10554137,176.71,176.69,0.92]
[1752757473052,6.10554137,176.71,176.69,0.2]
[1752757473547,6.10554137,176.71,176.69,0.92]
[1752757474247,6.10554137,176.71,176.7,0.72]
[1752757474450,6.10554137,176.71,176.7,26.72]
[1752757475046,6.10554137,176.75,176.72,26.0]
[1752757475247,5.65642853,176.79,176.73,26.72]